bitfinex/quotes_BTCUSD_20240602
["timestamp","ask_amount","ask_price","bid_price","bid_amount"]
[1717333388673,1.24705786,67913.0,67912.0,0.00317725]
[1717333388881,1.25705786,67913.0,67912.0,0.00317725]
[1717333389300,1.24705786,67913.0,67912.0,0.00317725]
[1717333389912,1.25705786,67913.0,67912.0,0.00317725]
[1717333391128,0.96256386,67913.0,67912.0,0.00317725]
[1717333391323,1.25705786,67913.0,67912.0,0.00317725]
[1717333391728,0.96256386,67913.0,67912.0,0.00317725]
[1717333392134,0.60886386,67913.0,67912.0,0.00317725]
[1717333393183,0.53404395,67913.0,67912.0,0.00317725]
[1717333393354,0.604384,67913.0,67912.0,0.00317725]
[1717333393530,0.604384,67913.0,67912.0,0.25087725]
[1717333393741,0.53404395,67913.0,67912.0,0.25087725]
[1717333395354,0.60543789,67913.0,67912.0,0.25087725]
[1717333395779,0.53404395,67913.0,67912.0,0.25087725]
[1717333396383,0.60572138,67913.0,67912.0,0.25087725]
[1717333399985,0.60572138,67913.0,67912.0,0.00317725]
[1717333402862,0.61527438,67913.0,67912.0,0.00317725]
[1717333403285,0.69817438,67913.0,67912.0,0.00317725]
[1717333405330,0.73315891,67913.0,67912.0,0.00317725]
[1717333405538,0.69817438,67913.0,67912.0,0.00317725]
[1717333406254,0.85427438,67913.0,67912.0,0.00317725]
[1717333406686,0.88926417,67913.0,67912.0,0.00317725]
[1717333407102,1.28375817,67913.0,67912.0,0.00317725]
[1717333407255,1.3275267,67913.0,67912.0,0.00317725]
[1717333407455,1.34941154,67913.0,67912.0,0.00317725]
[1717333407859,1.28375817,67913.0,67912.0,0.00317725]
[1717333408311,1.32764517,67913.0,67912.0,0.00317725]
[1717333409077,1.28375817,67913.0,67912.0,0.00317725]
[1717333409272,1.34941154,67913.0,67912.0,0.00317725]
[1717333409746,1.57825217,67913.0,67912.0,0.00317725]
[1717333410609,1.66607911,67913.0,67912.0,0.00317725]
[1717333411274,1.57825217,67913.0,67912.0,0.00317725]
[1717333411496,1.68775195,67913.0,67912.0,0.00317725]
[1717333413583,1.67825217,67913.0,67912.0,0.00317725]
[1717333414648,1.78802946,67913.0,67912.0,0.00317725]
[1717333415023,2.08252346,67913.0,67912.0,0.00317725]
[1717333415229,2.10552346,67913.0,67912.0,0.00317725]
[1717333417786,0.7986352,67903.0,67902.0,0.00857]
[1717333417989,1.49260164,67903.0,67902.0,0.00857]
[1717333418214,1.49257094,67903.0,67902.0,0.00857]
[1717333419259,1.47775917,67903.0,67902.0,0.01157]
[1717333419447,1.56555398,67903.0,67902.0,0.01157]
[1717333419704,1.56555398,67903.0,67902.0,0.01057]
[1717333419918,1.60255398,67903.0,67902.0,0.01157]
[1717333420301,1.51475917,67903.0,67902.0,0.01157]
[1717333420472,1.56655398,67903.0,67902.0,0.00957]
[1717333420897,1.70255398,67903.0,67902.0,0.00957]
[1717333421304,1.80255398,67903.0,67902.0,0.00957]
[1717333422293,1.80255398,67903.0,67901.0,0.4134]
[1717333422294,0.9986482,67902.0,67901.0,0.389117]
[1717333422498,1.55671506,67902.0,67901.0,0.22164173]
[1717333422698,1.78881753,67902.0,67901.0,0.16697686]
[1717333422901,1.81181753,67902.0,67901.0,0.16697686]
[1717333423094,1.81181753,67902.0,67901.0,0.11549686]
[1717333423095,2.08903381,67902.0,67901.0,0.11549686]
[1717333423310,2.0091339,67902.0,67901.0,0.10296001]
[1717333423578,2.43508664,67902.0,67901.0,0.10296001]
[1717333423800,2.47108664,67902.0,67901.0,0.08522186]
[1717333424009,2.2252811,67902.0,67901.0,0.08522186]
[1717333424208,2.19387036,67902.0,67901.0,0.08522186]
[1717333424639,2.22987036,67902.0,67901.0,0.08522186]
[1717333425444,2.10635953,67902.0,67901.0,0.08522186]
[1717333426504,2.14335953,67902.0,67901.0,0.08522186]
[1717333426921,2.21629979,67902.0,67901.0,0.08522186]
[1717333427271,2.36210533,67902.0,67901.0,0.08522186]
[1717333427491,2.36646027,67902.0,67901.0,0.08522186]
[1717333427880,2.22065473,67902.0,67901.0,0.08522186]
[1717333428316,2.12065473,67902.0,67901.0,0.08522186]
[1717333428861,1.93975297,67902.0,67901.0,0.08522186]
[1717333429093,1.24035281,67902.0,67901.0,0.08522186]
[1717333429325,1.24035281,67902.0,67901.0,0.16482186]
[1717333429326,1.19654853,67902.0,67901.0,0.16482186]
[1717333429544,1.19654853,67902.0,67901.0,0.08522186]
[1717333429545,0.80200653,67902.0,67901.0,0.08522186]
[1717333429764,0.81200653,67902.0,67901.0,0.24412186]
[1717333430131,0.80200653,67902.0,67901.0,0.24412186]
[1717333430331,0.80200653,67902.0,67901.0,0.08522186]
[1717333430332,0.91200653,67902.0,67901.0,0.08522186]
[1717333430560,0.87500653,67902.0,67901.0,0.08522186]
[1717333430758,0.91200653,67902.0,67901.0,0.08522186]
[1717333430962,0.90200653,67902.0,67901.0,0.24412186]
[1717333431187,0.86500653,67902.0,67901.0,0.24412186]
[1717333431444,0.82800653,67902.0,67901.0,0.24412186]
[1717333431636,0.90100653,67902.0,67901.0,0.24412186]
[1717333432181,0.94800653,67902.0,67901.0,0.24412186]
[1717333432575,0.86400653,67902.0,67901.0,0.24412186]
[1717333432863,0.91100653,67902.0,67901.0,0.24512186]
[1717333433059,0.87500653,67902.0,67901.0,0.08622186]
[1717333433487,0.91200653,67902.0,67901.0,0.08622186]
[1717333433688,1.07350653,67902.0,67901.0,0.08622186]
[1717333433892,1.26954853,67902.0,67901.0,0.08622186]
[1717333434390,1.30554853,67902.0,67901.0,0.08622186]
[1717333434829,1.30817893,67902.0,67901.0,0.08622186]
[1717333435829,1.46237893,67902.0,67901.0,0.08622186]
[1717333436194,1.53927893,67902.0,67901.0,0.08622186]
[1717333436398,1.56227893,67902.0,67901.0,0.08622186]
[1717333437046,1.66227893,67902.0,67901.0,0.08622186]
[1717333437662,1.56227893,67902.0,67901.0,0.08622186]
[1717333438043,1.66227893,67902.0,67901.0,0.08622186]
[1717333439175,1.72125093,67902.0,67901.0,0.08622186]
[1717333439578,1.62125093,67902.0,67901.0,0.08622186]
[1717333440505,1.75622981,67902.0,67901.0,0.08622186]
[1717333441152,1.79239276,67902.0,67901.0,0.08622186]
[1717333441829,1.97380025,67902.0,67901.0,0.08622186]
[1717333442286,1.87380025,67902.0,67901.0,0.08622186]
[1717333442538,1.97380025,67902.0,67901.0,0.08622186]
[1717333442988,1.87380025,67902.0,67901.0,0.08622186]
[1717333443219,2.20263248,67902.0,67901.0,0.08622186]
[1717333443691,2.26834555,67902.0,67901.0,0.08622186]
[1717333443941,1.87380355,67902.0,67901.0,0.08622186]
[1717333444388,2.20263248,67902.0,67901.0,0.08622186]
[1717333444640,1.90809048,67902.0,67901.0,0.08622186]
[1717333446613,1.99570351,67902.0,67901.0,0.08622186]
[1717333447099,2.29024551,67902.0,67901.0,0.08622186]
[1717333447866,1.99570351,67902.0,67901.0,0.08622186]
[1717333448370,1.90809048,67902.0,67901.0,0.08622186]
[1717333449857,1.80809048,67902.0,67901.0,0.08622186]
[1717333450350,1.9175926,67902.0,67901.0,0.08622186]
[1717333451397,2.11125451,67902.0,67901.0,0.08622186]
[1717333451614,2.0175926,67902.0,67901.0,0.08622186]
[1717333451848,1.90809048,67902.0,67901.0,0.08622186]
[1717333452288,2.0175926,67902.0,67901.0,0.08622186]
[1717333452776,1.90809048,67902.0,67901.0,0.08622186]
[1717333452996,2.20263248,67902.0,67901.0,0.08622186]
[1717333455628,1.90809048,67902.0,67901.0,0.08622186]
[1717333456069,2.20263248,67902.0,67901.0,0.08622186]
[1717333458845,2.10263248,67902.0,67901.0,0.08622186]
[1717333459075,2.20263248,67902.0,67901.0,0.08622186]
[1717333459513,1.97153248,67902.0,67901.0,0.08622186]
[1717333460195,2.05483248,67902.0,67901.0,0.08622186]
[1717333460574,2.05483248,67902.0,67901.0,0.04943799]
[1717333460774,2.21693248,67902.0,67901.0,0.04943799]
[1717333461588,2.36273802,67902.0,67901.0,0.02892248]
[1717333461837,2.36273802,67902.0,67895.0,0.0139449]
[1717333461838,1.1887132,67896.0,67895.0,0.0139449]
[1717333462052,1.33449111,67896.0,67895.0,0.01064164]
[1717333462272,1.95748348,67896.0,67895.0,0.01064164]
[1717333462492,2.08939396,67896.0,67895.0,0.01064164]
[1717333463200,1.85748348,67896.0,67895.0,0.01064164]
[1717333463340,1.82729396,67896.0,67895.0,0.01064164]
[1717333463545,1.73238348,67896.0,67895.0,0.01064164]
[1717333463747,2.02695148,67896.0,67895.0,0.01064164]
[1717333463955,2.16395148,67896.0,67895.0,0.01064164]
[1717333464152,2.03829396,67896.0,67895.0,0.01064164]
[1717333464754,2.23286196,67896.0,67895.0,0.01064164]
[1717333464957,2.33286196,67896.0,67895.0,0.01064164]
[1717333465518,2.23286196,67896.0,67895.0,0.01064164]
[1717333465693,2.33286196,67896.0,67895.0,0.01064164]
[1717333466038,2.4786675,67896.0,67895.0,0.01064164]
[1717333466248,0.9987552,67892.0,67888.0,0.00857]
[1717333466478,1.51724209,67892.0,67888.0,0.00857]
[1717333466672,1.30642776,67892.0,67888.0,0.00857]
[1717333467590,1.60101276,67892.0,67888.0,0.00857]
[1717333467996,1.71150728,67892.0,67888.0,0.00857]
[1717333468617,1.74750728,67892.0,67888.0,0.00857]
[1717333469027,1.78350728,67892.0,67888.0,0.00857]
[1717333469256,1.81395857,67892.0,67888.0,0.00857]
[1717333469763,1.74195857,67892.0,67888.0,0.00857]
[1717333470151,1.81395857,67892.0,67888.0,0.00857]
[1717333471746,1.66703262,67892.0,67888.0,0.00857]
[1717333471956,1.81847529,67892.0,67888.0,0.00857]
[1717333472339,2.06327529,67892.0,67888.0,0.00857]
[1717333472698,2.02727529,67892.0,67888.0,0.00857]
[1717333473303,2.16327529,67892.0,67888.0,0.00857]
[1717333473899,2.06327529,67892.0,67888.0,0.00857]
[1717333475113,1.94781842,67892.0,67888.0,0.00857]
[1717333477089,2.03083354,67892.0,67888.0,0.00857]
[1717333477242,2.06129459,67892.0,67888.0,0.00857]
[1717333477452,1.94782818,67892.0,67888.0,0.00857]
[1717333477654,1.78462818,67892.0,67888.0,0.00857]
[1717333478072,1.89810347,67892.0,67888.0,0.00857]
[1717333478282,1.99810347,67892.0,67888.0,0.00857]
[1717333478980,1.89810347,67892.0,67888.0,0.00857]
[1717333479181,2.34259715,67892.0,67891.0,1e-08]
[1717333479405,1.3833862,67889.0,67888.0,2e-08]
[1717333479606,1.93454722,67889.0,67888.0,2e-08]
[1717333479808,1.82454722,67889.0,67888.0,2e-08]
[1717333480055,1.93454722,67889.0,67888.0,0.23900002]
[1717333480185,1.63994922,67889.0,67888.0,0.23900002]
[1717333481047,1.67694922,67889.0,67888.0,0.23900002]
[1717333481281,1.63994922,67889.0,67888.0,0.23900002]
[1717333482422,1.67594922,67889.0,67888.0,0.23900002]
[1717333482627,1.37594922,67889.0,67888.0,0.23900002]
[1717333483048,1.37906318,67889.0,67888.0,0.23900002]
[1717333483458,1.41506318,67889.0,67888.0,0.23900002]
[1717333483605,1.30501513,67889.0,67888.0,0.23900002]
[1717333483812,1.33550074,67889.0,67888.0,0.23900002]
[1717333484173,1.34550074,67889.0,67888.0,0.23900002]
[1717333484605,1.4608184,67889.0,67888.0,0.23900002]
[1717333485265,1.4608184,67889.0,67875.0,0.4035]
[1717333485266,0.9988302,67885.0,67875.0,0.4035]
[1717333485472,1.44920661,67885.0,67884.0,0.94873415]
[1717333485707,1.77970347,67885.0,67884.0,0.81201111]
[1717333485949,1.64774935,67885.0,67884.0,0.81201111]
[1717333486156,1.77977705,67885.0,67884.0,0.81201111]
[1717333486379,1.61726374,67885.0,67884.0,0.81201111]
[1717333486589,1.78529144,67885.0,67884.0,0.81201111]
[1717333487025,1.78529144,67885.0,67884.0,0.79601111]
[1717333487026,1.65326374,67885.0,67884.0,0.79601111]
[1717333487233,1.68926374,67885.0,67884.0,0.79601111]
[1717333487442,2.0619419,67885.0,67884.0,0.79601111]
[1717333488257,1.9259419,67885.0,67884.0,0.79601111]
[1717333488546,1.93096374,67885.0,67884.0,0.79601111]
[1717333488992,1.85807479,67885.0,67884.0,0.79601111]
[1717333489404,2.15268979,67885.0,67884.0,0.79601111]
[1717333490393,2.29849533,67885.0,67884.0,0.79601111]
[1717333490597,2.15268979,67885.0,67884.0,0.79601111]
[1717333490803,2.15268979,67885.0,67884.0,0.71122111]
[1717333491002,2.28466795,67885.0,67884.0,0.71122111]
[1717333491209,2.28466795,67885.0,67884.0,0.69422111]
[1717333491407,2.28466795,67885.0,67884.0,0.62922111]
[1717333491640,2.15268979,67885.0,67884.0,0.62922111]
[1717333491854,2.15268979,67885.0,67884.0,0.58222111]
[1717333492027,2.28466795,67885.0,67884.0,0.58222111]
[1717333492299,2.29849533,67885.0,67884.0,0.49762111]
[1717333492705,2.15268979,67885.0,67884.0,0.48012111]
[1717333493107,2.11568979,67885.0,67884.0,0.48012111]
[1717333493284,2.11568979,67885.0,67884.0,0.25065711]
[1717333493495,2.22814785,67885.0,67884.0,1.1e-07]
[1717333493699,3.63268979,67885.0,67884.0,1.1e-07]
[1717333493902,2.26505133,67885.0,67884.0,1.1e-07]
[1717333494119,2.11668979,67885.0,67884.0,1.1e-07]
[1717333494653,2.15368979,67885.0,67884.0,1.1e-07]
[1717333495023,2.11668979,67885.0,67884.0,1.1e-07]
[1717333495710,2.15368979,67885.0,67884.0,1.1e-07]
[1717333496466,2.29949533,67885.0,67884.0,1.1e-07]
[1717333496668,2.27798373,67885.0,67884.0,1.1e-07]
[1717333498081,2.13217819,67885.0,67884.0,1.1e-07]
[1717333498589,2.03217819,67885.0,67884.0,1.1e-07]
[1717333498725,2.09517819,67885.0,67884.0,1.1e-07]
[1717333499120,2.26397882,67885.0,67884.0,1.1e-07]
[1717333499530,2.09517819,67885.0,67884.0,1.1e-07]
[1717333500365,2.20536276,67885.0,67884.0,1.1e-07]
[1717333501025,2.24236276,67885.0,67884.0,1.1e-07]
[1717333502875,2.26543631,67885.0,67884.0,1.1e-07]
[1717333503602,2.22843631,67885.0,67884.0,1.1e-07]
[1717333503807,2.26543631,67885.0,67884.0,1.1e-07]
[1717333504142,2.22843631,67885.0,67884.0,1.1e-07]
[1717333504513,2.22843631,67885.0,67873.0,0.00857]
[1717333504514,0.222927,67876.0,67873.0,0.00857]
[1717333504785,0.1596,67883.0,67834.0,0.00857]
[1717333504786,0.7943592,67863.0,67854.0,0.1642]
[1717333504987,1.6433925,67863.0,67854.0,0.1642]
[1717333505177,2.29844926,67863.0,67854.0,0.1642]
[1717333505410,2.29844926,67863.0,67850.0,0.0018089]
[1717333505411,0.7944372,67851.0,67850.0,0.0018089]
[1717333505623,1.01959482,67851.0,67850.0,0.0018089]
[1717333505839,1.15464232,67851.0,67850.0,0.2412089]
[1717333506045,1.21214078,67851.0,67850.0,0.2412089]
[1717333506246,1.14770267,67851.0,67850.0,0.2412089]
[1717333506445,1.2656026,67851.0,67850.0,0.0018089]
[1717333506648,1.30954428,67851.0,67850.0,0.0018089]
[1717333506824,1.19979411,67851.0,67850.0,0.0018089]
[1717333507223,1.18979411,67851.0,67850.0,0.0018089]
[1717333507498,0.91438869,67851.0,67850.0,0.0018089]
[1717333507670,0.82548515,67851.0,67850.0,0.0018089]
[1717333507908,0.70248515,67851.0,67850.0,0.0018089]
[1717333508115,0.70248515,67851.0,67850.0,0.2412089]
[1717333508327,0.65039371,67851.0,67850.0,0.2412089]
[1717333508976,0.68739371,67851.0,67850.0,0.2412089]
[1717333509374,0.72439371,67851.0,67850.0,0.2412089]
[1717333509606,0.76039371,67851.0,67850.0,0.2412089]
[1717333509795,0.68639371,67851.0,67850.0,0.2412089]
[1717333510365,0.72239371,67851.0,67850.0,0.2412089]
[1717333510964,0.72239371,67851.0,67850.0,0.26532979]
[1717333510965,0.38010051,67851.0,67850.0,0.26532979]
[1717333511203,0.40215891,67851.0,67850.0,0.26532979]
[1717333511429,0.40215891,67851.0,67850.0,0.2412089]
[1717333511629,0.36515891,67851.0,67850.0,0.2412089]
[1717333512084,0.40215891,67851.0,67850.0,0.2412089]
[1717333512335,0.55445211,67851.0,67850.0,0.2412089]
[1717333512475,0.55445211,67851.0,67850.0,0.26532979]
[1717333512476,0.44545211,67851.0,67850.0,0.26532979]
[1717333512675,0.48245211,67851.0,67850.0,0.26532979]
[1717333512876,0.46615891,67851.0,67850.0,0.26532979]
[1717333513289,0.50215891,67851.0,67850.0,0.2412089]
[1717333513681,0.31777791,67851.0,67850.0,0.2412089]
[1717333513892,0.35377791,67851.0,67850.0,0.2412089]
[1717333514121,0.35377791,67851.0,67850.0,0.2512089]
[1717333514260,0.28177791,67851.0,67850.0,0.2412089]
[1717333514711,0.28177791,67851.0,67850.0,0.26732979]
[1717333514712,0.31777791,67851.0,67850.0,0.26732979]
[1717333515087,0.42915891,67851.0,67850.0,0.26632979]
[1717333515310,0.51745211,67851.0,67850.0,0.2422089]
[1717333515507,0.31777791,67851.0,67850.0,0.2422089]
[1717333515719,0.35377791,67851.0,67850.0,0.2522089]
[1717333515970,0.072,67851.0,67850.0,0.2512089]
[1717333516127,0.072,67851.0,67850.0,0.28110047]
[1717333516340,0.036,67851.0,67850.0,0.28210047]
[1717333516756,0.072,67851.0,67850.0,0.28210047]
[1717333517547,0.072,67851.0,67850.0,0.28110047]
[1717333517719,0.036,67851.0,67850.0,0.28110047]
[1717333517939,0.072,67851.0,67850.0,0.28110047]
[1717333518293,0.036,67851.0,67850.0,0.28110047]
[1717333518724,0.043,67851.0,67850.0,0.28110047]
[1717333519133,0.041,67851.0,67850.0,0.28110047]
[1717333519329,0.005,67851.0,67850.0,0.28110047]
[1717333519531,0.009,67851.0,67850.0,0.28210047]
[1717333519736,0.01,67851.0,67850.0,0.28210047]
[1717333520319,0.1,67861.0,67850.0,0.28210047]
[1717333520320,0.1,67861.0,67860.0,0.2494]
[1717333520494,0.14577791,67861.0,67860.0,0.27434]
[1717333520770,0.24577791,67861.0,67860.0,0.27434]
[1717333521522,0.28177791,67861.0,67860.0,0.27434]
[1717333522019,0.4691,67874.0,67873.0,0.2494]
[1717333522266,0.14577791,67874.0,67873.0,0.27434]
[1717333522470,0.0522932,67883.0,67877.0,0.2394]
[1717333522673,0.15988895,67882.0,67878.0,0.0799]
[1717333522825,0.14577791,67882.0,67879.0,0.1595]
[1717333523022,0.14577791,67882.0,67880.0,0.02494]
[1717333523681,0.1,67881.0,67880.0,0.02494]
[1717333523883,0.24577791,67881.0,67880.0,0.02494]
[1717333524619,0.44538711,67881.0,67880.0,0.02494]
[1717333525043,0.47138711,67881.0,67880.0,0.02794]
[1717333525217,0.47138711,67881.0,67880.0,0.003]
[1717333525432,0.47138711,67881.0,67879.0,0.1595]
[1717333525636,0.19807111,67880.0,67879.0,0.1595]
[1717333525846,0.24577791,67880.0,67879.0,0.1595]
[1717333526484,0.39309591,67880.0,67879.0,0.1595]
[1717333526711,0.24577791,67880.0,67879.0,0.18444]
[1717333526923,0.29807111,67880.0,67879.0,0.18344]
[1717333527366,0.33407111,67880.0,67879.0,0.18444]
[1717333527586,0.28177791,67880.0,67879.0,0.18744]
[1717333527790,0.28177791,67880.0,67879.0,0.27304]
[1717333528008,0.28177791,67880.0,67879.0,0.27004]
[1717333528237,0.31077791,67880.0,67879.0,0.27304]
[1717333528717,0.27477791,67880.0,67879.0,0.26904]
[1717333528948,0.28177791,67880.0,67879.0,0.28004]
[1717333529184,0.28177791,67880.0,67879.0,0.28104]
[1717333529654,0.28177791,67880.0,67879.0,0.28204]
[1717333529655,0.04,67880.0,67879.0,0.28204]
[1717333529955,0.04,67880.0,67879.0,0.42936]
[1717333531036,0.04,67880.0,67879.0,0.42836]
[1717333531451,0.04,67880.0,67879.0,0.43136]
[1717333532754,0.041,67880.0,67879.0,0.43236]
[1717333535498,0.041,67880.0,67879.0,0.27504]
[1717333535698,0.041,67880.0,67879.0,0.2511]
[1717333536541,0.041,67880.0,67879.0,0.2611]
[1717333537006,0.041,67880.0,67879.0,0.2511]
[1717333541119,0.18677791,67880.0,67879.0,0.006]
[1717333541320,0.33409591,67880.0,67879.0,0.006]
[1717333541719,0.18677791,67880.0,67879.0,0.006]
[1717333542144,0.18677791,67880.0,67879.0,0.003]
[1717333542346,0.19807111,67880.0,67878.0,0.171]
[1717333542547,0.19807111,67880.0,67874.0,0.171]
[1717333542548,0.0522932,67877.0,67874.0,0.171]
[1717333542803,0.14577791,67876.0,67874.0,0.171]
[1717333543296,0.14577791,67876.0,67875.0,0.02666]
[1717333543496,0.14577791,67876.0,67875.0,0.03666]
[1717333543905,0.07288895,67887.0,67875.0,0.03666]
[1717333543906,0.147305,67886.0,67883.0,0.2566]
[1717333544236,0.1,67885.0,67884.0,0.01]
[1717333544542,0.1,67885.0,67884.0,0.03676]
[1717333544662,0.1,67885.0,67884.0,0.02676]
[1717333545078,0.029,67886.0,67884.0,0.03676]
[1717333545492,0.1,67888.0,67884.0,0.02676]
[1717333545707,0.14577791,67887.0,67884.0,0.02676]
[1717333545906,0.1,67886.0,67885.0,0.029336]
[1717333546567,0.136,67886.0,67885.0,0.029336]
[1717333547226,0.136,67886.0,67885.0,0.039336]
[1717333547528,0.1,67886.0,67885.0,0.039336]
[1717333547944,0.18177791,67887.0,67885.0,0.039336]
[1717333547945,0.036,67887.0,67886.0,0.01]
[1717333548153,0.036,67887.0,67886.0,0.2879936]
[1717333548744,0.03533493,67887.0,67886.0,0.2879936]
[1717333549262,0.1,67892.0,67891.0,0.01]
[1717333549506,0.24577791,67892.0,67891.0,0.01]
[1717333549685,0.24577791,67892.0,67891.0,0.02919936]
[1717333550468,0.28177791,67892.0,67891.0,0.03019936]
[1717333550884,0.28177791,67892.0,67891.0,0.03319936]
[1717333551091,0.30777791,67892.0,67891.0,0.03319936]
[1717333552999,0.45506991,67892.0,67891.0,0.03319936]
[1717333553222,0.45474749,67892.0,67891.0,0.03319936]
[1717333553613,0.50704069,67892.0,67891.0,0.03319936]
[1717333553772,0.45474749,67892.0,67891.0,0.03319936]
[1717333554396,0.45474749,67892.0,67891.0,0.28129936]
[1717333555779,0.45474749,67892.0,67891.0,0.29129936]
[1717333556318,0.45474749,67892.0,67891.0,0.28129936]
[1717333556973,0.45474749,67892.0,67891.0,0.27829936]
[1717333557223,0.42874749,67892.0,67891.0,0.27829936]
[1717333557426,0.41674749,67892.0,67891.0,0.28029936]
[1717333557543,0.45374749,67892.0,67891.0,0.29129936]
[1717333558106,0.45374749,67892.0,67891.0,0.28129936]
[1717333558365,0.45374749,67892.0,67891.0,0.29129936]
[1717333558579,0.30796958,67892.0,67891.0,0.29129936]
[1717333559196,0.061,67892.0,67891.0,0.29129936]
[1717333559516,0.061,67892.0,67891.0,0.4441494]
[1717333559771,0.061,67892.0,67891.0,0.44414808]
[1717333560352,0.061,67892.0,67891.0,0.44314808]
[1717333560548,0.247277,67899.0,67895.0,0.01]
[1717333560753,0.14577791,67898.0,67896.0,0.05401481]
[1717333561033,0.2005852,67892.0,67891.0,0.021]
[1717333561228,0.34636311,67892.0,67891.0,0.021]
[1717333561433,0.0522932,67886.0,67885.0,0.084]
[1717333562121,0.0522932,67886.0,67875.0,0.34586701]
[1717333562122,0.0522932,67880.0,67875.0,0.02666]
[1717333562301,0.0522932,67880.0,67872.0,0.01]
[1717333562302,0.14577791,67879.0,67876.0,0.15288567]
[1717333562505,0.0522932,67875.0,67868.0,0.1741]
[1717333562706,0.0522932,67875.0,67869.0,0.15289817]
[1717333562919,0.0522932,67875.0,67868.0,0.1641]
[1717333562920,0.0522932,67872.0,67870.0,0.15289817]
[1717333563143,0.0522932,67872.0,67868.0,0.1641]
[1717333563144,0.0522932,67870.0,67868.0,0.1641]
[1717333563705,0.0522932,67870.0,67867.0,0.084]
[1717333563908,0.19807111,67872.0,67867.0,0.084]
[1717333564396,0.0522932,67871.0,67867.0,0.084]
[1717333564597,0.1996372,67868.0,67865.0,0.1641]
[1717333564746,0.1996372,67868.0,67866.0,0.01741]
[1717333564747,0.29312191,67868.0,67866.0,0.01741]
[1717333565155,0.29312191,67868.0,67867.0,0.009]
[1717333565556,0.29312191,67868.0,67867.0,0.005]
[1717333566122,0.34541511,67868.0,67867.0,0.005]
[1717333566324,0.34641511,67868.0,67867.0,0.005]
[1717333566566,0.0522932,67865.0,67859.0,0.1703]
[1717333566768,0.0522932,67864.0,67859.0,0.1703]
[1717333567174,0.0522932,67862.0,67853.0,0.2589]
[1717333567378,0.0522932,67860.0,67854.0,0.02607089]
[1717333567616,0.147369,67857.0,67853.0,0.2589]
[1717333568767,0.2016622,67857.0,67853.0,0.2959]
[1717333569246,0.149369,67857.0,67853.0,0.2959]
[1717333569642,0.002,67857.0,67856.0,0.01]
[1717333569859,0.004,67857.0,67856.0,0.01]
[1717333570049,0.004,67857.0,67856.0,0.04837366]
[1717333570655,0.002,67857.0,67856.0,0.04837366]
[1717333570822,0.1,67862.0,67858.0,0.01]
[1717333571029,0.14577791,67861.0,67856.0,0.03837366]
[1717333571279,0.001,67857.0,67856.0,0.03247943]
[1717333572123,0.002,67857.0,67856.0,0.03547943]
[1717333572380,0.001,67857.0,67856.0,0.03547943]
[1717333573364,0.2006612,67857.0,67856.0,0.03547943]
[1717333573564,0.34643911,67857.0,67856.0,0.003]
[1717333574295,0.34643911,67857.0,67856.0,0.009]
[1717333578078,0.29414591,67857.0,67856.0,0.009]
[1717333579128,0.34643911,67857.0,67856.0,0.009]
[1717333580181,0.3461168,67857.0,67856.0,0.009]
[1717333581824,0.2938236,67857.0,67856.0,0.009]
[1717333582757,0.2938236,67857.0,67856.0,0.03679]
[1717333584749,0.14804569,67857.0,67856.0,0.03679]
[1717333585194,0.00067769,67857.0,67856.0,0.03679]
[1717333585897,0.14804569,67857.0,67856.0,0.03679]
[1717333586129,0.00067769,67857.0,67856.0,0.03679]
[1717333587057,0.00067769,67857.0,67856.0,0.04268433]
[1717333587315,0.00067769,67857.0,67856.0,0.03679]
[1717333587529,0.00067769,67857.0,67856.0,0.29458418]
[1717333587733,0.00067769,67857.0,67856.0,0.26679418]
[1717333589466,0.00067769,67857.0,67856.0,0.25679418]
[1717333590216,0.00067769,67857.0,67856.0,0.26679418]
[1717333593201,0.00067769,67857.0,67856.0,0.2509]
[1717333593430,0.00067769,67857.0,67856.0,0.2917279]
[1717333593645,0.00067769,67857.0,67856.0,0.0498279]
[1717333593829,0.05297089,67857.0,67856.0,0.009]
[1717333594236,0.20033889,67857.0,67856.0,0.009]
[1717333595924,0.3461168,67857.0,67856.0,0.009]
[1717333599035,0.36022877,67857.0,67856.0,0.009]
[1717333599435,0.46022877,67857.0,67856.0,0.009]
[1717333599640,0.51931899,67857.0,67856.0,0.009]
[1717333600076,0.51899668,67857.0,67856.0,0.009]
[1717333602675,0.45990646,67857.0,67856.0,0.009]
[1717333604016,0.51909022,67857.0,67856.0,0.009]
[1717333605104,0.45990646,67857.0,67856.0,0.009]
[1717333605675,0.44579449,67857.0,67856.0,0.009]
[1717333605883,0.45992691,67857.0,67856.0,0.009]
[1717333613198,0.2618558,67857.0,67856.0,0.03429]
[1717333613556,0.24772338,67857.0,67856.0,0.11219]
[1717333613995,0.10035538,67857.0,67856.0,0.11219]
[1717333614205,0.00035538,67857.0,67856.0,0.27819]
[1717333618234,0.00035538,67857.0,67856.0,0.28819]
[1717333619198,0.00035538,67857.0,67856.0,0.59006]
[1717333619420,0.00035538,67857.0,67856.0,0.79069358]
[1717333619623,0.00035538,67857.0,67856.0,0.74298678]
[1717333620026,0.00035538,67857.0,67856.0,0.79069358]
[1717333620218,0.00035538,67857.0,67856.0,0.78469358]
[1717333620357,0.002,67857.0,67856.0,0.77098678]
[1717333620783,0.002,67857.0,67856.0,0.61648678]
[1717333620984,0.0522932,67867.0,67857.0,0.01]
[1717333621179,0.1996382,67868.0,67859.0,0.01]
[1717333621408,0.1996382,67868.0,67860.0,0.01]
[1717333622285,0.1996402,67867.0,67859.0,0.01]
[1717333622517,0.0522932,67866.0,67859.0,0.01]
[1717333622720,0.1996402,67867.0,67859.0,0.01]
[1717333622958,0.0522932,67864.0,67860.0,0.04446144]
[1717333623133,0.0522932,67863.0,67860.0,0.04446144]
[1717333623344,0.0522932,67862.0,67860.0,0.04446144]
[1717333623778,0.14577791,67861.0,67859.0,0.023]
[1717333623991,0.003,67867.0,67860.0,0.01]
[1717333623992,0.004,67867.0,67860.0,0.01]
[1717333624203,0.002,67864.0,67863.0,0.166]
[1717333624404,0.002,67864.0,67863.0,0.18908934]
[1717333624614,0.0522932,67860.0,67854.0,0.166]
[1717333624824,0.001,67862.0,67860.0,0.023]
[1717333626091,0.0552932,67862.0,67860.0,0.044]
[1717333626314,0.0522932,67861.0,67860.0,0.021]
[1717333626897,0.0542932,67862.0,67860.0,0.021]
[1717333627077,0.002,67862.0,67860.0,0.021]
[1717333627310,0.002,67862.0,67860.0,0.046]
[1717333627311,0.003,67862.0,67860.0,0.046]
[1717333627518,0.0532932,67862.0,67860.0,0.025]
[1717333627739,0.0522932,67861.0,67860.0,0.025]
[1717333627964,0.002,67861.0,67860.0,0.046]